bitfinex-derivatives/quotes_BTCF0:USTF0_20250719
["timestamp","ask_amount","ask_price","bid_price","bid_amount"]
[1752928347296,0.232337,118260.0,118250.0,0.04313]
[1752928347493,0.27262887,118260.0,118250.0,0.04313]
[1752928347698,0.40004018,118260.0,118250.0,0.04313]
[1752928347893,0.40004018,118260.0,118250.0,0.17054131]
[1752928348400,0.40004018,118260.0,118250.0,0.17507565]
[1752928348799,0.40004018,118260.0,118250.0,0.04766434]
[1752928348999,0.40004018,118260.0,118250.0,0.05166434]
[1752928349302,0.40004018,118260.0,118250.0,0.05766434]
[1752928349700,0.52745149,118260.0,118250.0,0.05766434]
[1752928349901,0.52745149,118260.0,118250.0,0.03899434]
[1752928350103,0.52745149,118260.0,118250.0,0.03338434]
[1752928350304,0.88825149,118260.0,118250.0,0.03338434]
[1752928350504,0.63342887,118260.0,118250.0,0.03338434]
[1752928350704,0.76084018,118260.0,118250.0,0.03338434]
[1752928351105,0.76084018,118260.0,118250.0,0.02938434]
[1752928351297,0.76084018,118260.0,118250.0,0.03138434]
[1752928352001,0.88825149,118260.0,118250.0,0.01253434]
[1752928352200,0.88825149,118260.0,118250.0,0.002]
[1752928352406,0.88825149,118260.0,118250.0,0.005]
[1752928352804,1.38825149,118260.0,118250.0,0.005]
[1752928353400,1.98197149,118260.0,118250.0,0.005]
[1752928353604,2.1093828,118260.0,118250.0,0.005]
[1752928353806,1.98197149,118260.0,118250.0,0.005]
[1752928356902,1.72714887,118260.0,118250.0,0.005]
[1752928357102,1.89714338,118260.0,118250.0,0.005]
[1752928362307,0.77262887,118260.0,118250.0,0.57892451]
[1752928363999,0.27262887,118260.0,118250.0,0.57892451]
[1752928364508,0.254927,118260.0,118250.0,1.17348451]
[1752928366111,0.254927,118260.0,118250.0,1.34252581]
[1752928367708,0.254927,118260.0,118250.0,1.17348451]
[1752928371809,0.254927,118260.0,118250.0,0.81268451]
[1752928372010,0.254927,118260.0,118250.0,1.00349]
[1752928372313,0.254927,118260.0,118250.0,1.17348451]
[1752928374312,0.254927,118260.0,118250.0,1.34252581]
[1752928375413,0.254927,118260.0,118250.0,1.17348451]
[1752928376414,0.27258634,118260.0,118250.0,1.17348451]
[1752928377210,0.27258634,118260.0,118250.0,1.34252581]
[1752928378107,0.254927,118260.0,118250.0,1.34252581]
[1752928378414,0.246487,118260.0,118250.0,1.34252581]
[1752928379113,0.252007,118260.0,118250.0,1.34252581]
[1752928380211,0.215187,118260.0,118250.0,1.34252581]
[1752928380610,0.220707,118260.0,118250.0,1.34252581]
[1752928380810,0.237077,118260.0,118250.0,1.34252581]
[1752928381012,0.253457,118260.0,118250.0,1.34252581]
[1752928381812,0.215187,118260.0,118250.0,1.34252581]
[1752928382712,0.169027,118260.0,118250.0,1.99772581]
[1752928382919,0.169027,118260.0,118250.0,2.08252352]
[1752928383109,0.169027,118260.0,118250.0,1.72252352]
[1752928383516,0.169027,118260.0,118250.0,1.78305459]
[1752928384817,0.193647,118260.0,118250.0,1.78305459]
[1752928385012,0.193647,118260.0,118250.0,1.69813476]
[1752928385812,0.02462,118260.0,118250.0,1.69813476]
[1752928386013,0.02462,118260.0,118250.0,2.07813476]
[1752928386215,0.02462,118260.0,118250.0,1.69813476]
[1752928386415,0.02462,118260.0,118250.0,2.00813476]
[1752928386813,0.2350442,118270.0,118260.0,0.2126271]
[1752928387016,0.0414895,118270.0,118260.0,1.03849949]
[1752928387218,0.2105023,118270.0,118260.0,1.03849949]
[1752928387418,0.0414895,118270.0,118260.0,1.03849949]
[1752928388019,0.0414895,118270.0,118260.0,1.04149949]
[1752928388322,0.2105023,118270.0,118260.0,1.04149949]
[1752928388823,0.2105023,118270.0,118260.0,1.04249949]
[1752928389719,0.0414895,118270.0,118260.0,1.04249949]
[1752928390722,0.2105023,118270.0,118260.0,1.04249949]
[1752928390918,0.0168695,118270.0,118260.0,1.04249949]
[1752928391422,0.0414895,118270.0,118260.0,1.04249949]
[1752928391922,0.0414895,118270.0,118260.0,1.04349949]
[1752928394426,0.2105023,118270.0,118260.0,1.04349949]
[1752928394926,0.2105023,118270.0,118260.0,0.8736271]
[1752928395127,0.2105023,118270.0,118260.0,1.04349949]
[1752928395528,0.0168695,118270.0,118260.0,1.04349949]
[1752928396327,0.0414895,118270.0,118260.0,1.04349949]
[1752928396627,0.0168695,118270.0,118260.0,1.04349949]
[1752928397223,0.0414895,118270.0,118260.0,1.04349949]
[1752928397932,0.2105022,118270.0,118260.0,1.04349949]
[1752928399032,0.2105022,118270.0,118260.0,1.40429949]
[1752928399631,0.2105022,118270.0,118260.0,1.46483056]
[1752928400737,0.2105022,118270.0,118260.0,0.74323056]
[1752928400934,0.2105022,118270.0,118260.0,1.46483056]
[1752928401129,0.2105022,118270.0,118260.0,0.74323056]
[1752928401334,0.2105022,118270.0,118260.0,1.46483056]
[1752928403439,0.2105022,118270.0,118260.0,1.40429949]
[1752928405936,0.2340922,118270.0,118260.0,1.40429949]
[1752928409540,0.2340922,118270.0,118260.0,1.99757949]
[1752928410141,0.2105022,118270.0,118260.0,1.99757949]
[1752928412140,0.2105022,118270.0,118260.0,2.05811056]
[1752928412542,0.2105023,118270.0,118260.0,2.05811056]
[1752928413043,0.0414895,118270.0,118260.0,2.37757949]
[1752928413242,0.0414895,118270.0,118260.0,2.43811056]
[1752928413644,0.2105023,118270.0,118260.0,2.43811056]
[1752928416849,0.2105023,118270.0,118260.0,1.88823817]
[1752928417152,0.2105023,118270.0,118260.0,2.14300721]
[1752928417449,0.2340923,118270.0,118260.0,2.14300721]
[1752928420650,0.2340923,118270.0,118260.0,2.46300721]
[1752928420851,0.0650795,118270.0,118260.0,2.46300721]
[1752928421149,0.2340923,118270.0,118260.0,2.59039173]
[1752928421856,0.2105023,118270.0,118260.0,2.59039173]
[1752928422246,0.2105023,118270.0,118260.0,2.27039173]
[1752928422451,0.2105023,118270.0,118260.0,1.54879173]
[1752928422655,0.2105023,118270.0,118260.0,2.60039173]
[1752928424058,0.0414895,118270.0,118260.0,2.60039173]
[1752928424358,0.2105023,118270.0,118260.0,2.53986066]
[1752928425659,0.2105023,118270.0,118260.0,2.6007361]
[1752928426360,0.2105023,118270.0,118260.0,2.53986066]
[1752928426859,0.02462,118270.0,118260.0,2.60073712]
[1752928427059,0.2554854,118290.0,118280.0,0.1914585]
[1752928427369,0.213236,118290.0,118280.0,1.72403754]
[1752928428159,0.1901621,118290.0,118280.0,1.72403754]
[1752928428961,0.1901621,118290.0,118280.0,1.72503754]
[1752928429260,0.2146921,118290.0,118280.0,1.72503754]
[1752928430057,0.2146921,118290.0,118280.0,1.72603754]
[1752928430366,0.0457,118290.0,118280.0,2.14768982]
[1752928430557,0.2146842,118290.0,118280.0,2.14768982]
[1752928431062,0.0457,118290.0,118280.0,2.14668982]
[1752928431262,0.02453,118290.0,118280.0,1.98087434]
[1752928431470,0.1983176,118300.0,118290.0,0.1893942]
[1752928431653,0.1983176,118300.0,118290.0,0.83490324]
[1752928432164,0.02934,118300.0,118290.0,0.90367319]
[1752928432865,0.02934,118300.0,118290.0,0.90467319]
[1752928433064,0.02386,118300.0,118290.0,0.90467319]
[1752928433766,0.19283,118300.0,118290.0,0.90467319]
[1752928434264,0.19831,118300.0,118290.0,0.90467319]
[1752928435766,0.19283,118300.0,118290.0,0.90467319]
[1752928435967,0.02386,118300.0,118290.0,1.25467319]
[1752928436358,0.2357485,118310.0,118300.0,0.16897]
[1752928436559,0.0484,118310.0,118300.0,1.42078904]
[1752928436770,0.0484,118310.0,118300.0,1.42668904]
[1752928436771,0.1928157,118310.0,118300.0,1.42668904]
[1752928437769,0.1938157,118310.0,118300.0,1.42668904]
[1752928437971,0.02486,118310.0,118300.0,1.42668904]
[1752928439068,0.02486,118310.0,118300.0,1.34166208]
[1752928439670,0.1938157,118310.0,118300.0,1.34166208]
[1752928440365,0.1938157,118310.0,118300.0,1.17192]
[1752928440566,0.1938157,118310.0,118300.0,1.34166208]
[1752928440771,0.1992957,118310.0,118300.0,1.34166208]
[1752928442677,0.1938157,118310.0,118300.0,1.34166208]
[1752928443270,0.1938157,118310.0,118300.0,1.63686208]
[1752928450681,0.1992957,118310.0,118300.0,1.63686208]
[1752928452489,0.1992957,118310.0,118300.0,1.99766208]
[1752928455485,0.1992957,118310.0,118300.0,2.13796208]
[1752928455787,0.1992957,118310.0,118300.0,1.99766208]
[1752928456486,0.1982957,118310.0,118300.0,1.99866208]
[1752928458978,0.1982957,118310.0,118300.0,2.08353752]
[1752928459390,0.1982957,118310.0,118300.0,1.49173752]
[1752928459587,0.1982957,118310.0,118300.0,2.08221752]
[1752928460091,0.1982957,118310.0,118300.0,1.51075338]
[1752928460282,0.1982957,118310.0,118300.0,2.10123338]
[1752928463478,0.1982957,118310.0,118300.0,1.57160566]
[1752928463678,0.1982957,118310.0,118300.0,2.16204566]
[1752928464084,0.2386557,118310.0,118300.0,2.16204566]
[1752928469292,0.2386557,118310.0,118300.0,1.57160566]
[1752928469592,0.2386557,118310.0,118300.0,2.16204566]
[1752928470495,0.2386557,118310.0,118300.0,1.57160566]
[1752928470693,0.2386557,118310.0,118300.0,2.16204566]
[1752928473499,0.2386557,118310.0,118300.0,1.90742814]
[1752928473794,0.2386557,118310.0,118300.0,1.57160566]
[1752928473995,0.2386557,118310.0,118300.0,2.16200566]
[1752928474893,0.2386557,118310.0,118300.0,0.85000566]
[1752928475098,0.2386557,118310.0,118300.0,2.16200566]
[1752928487301,0.2144457,118310.0,118300.0,2.16200566]
[1752928492911,0.2089657,118310.0,118300.0,2.16200566]
[1752928493310,0.1928157,118310.0,118300.0,2.16200566]
[1752928493512,0.21111879,118310.0,118300.0,2.10115338]
[1752928494209,0.1928157,118310.0,118300.0,2.16200566]
[1752928496509,0.02386,118310.0,118300.0,2.16200566]
[1752928497711,0.02386,118310.0,118300.0,2.50200566]
[1752928498721,0.29961819,118320.0,118310.0,0.1689557]
[1752928498912,0.01830378,118320.0,118310.0,1.50154322]
[1752928502319,0.01830378,118320.0,118310.0,1.50354322]
[1752928502611,0.04189378,118320.0,118310.0,1.50354322]
[1752928503212,0.02359,118320.0,118310.0,1.50354322]
[1752928503617,0.02359,118320.0,118310.0,1.5643955]
[1752928504119,0.02459,118320.0,118310.0,1.5643955]
[1752928504318,0.1935314,118320.0,118310.0,0.98977798]
[1752928504518,0.1935314,118320.0,118310.0,1.2443955]
[1752928505715,0.1925314,118320.0,118310.0,1.2453955]
[1752928506222,0.1925314,118320.0,118310.0,1.18454322]
[1752928506417,0.02359,118320.0,118310.0,1.18454322]
[1752928509117,0.02359,118320.0,118310.0,1.2453955]
[1752928509320,0.02359,118320.0,118310.0,1.18454322]
[1752928509512,0.02359,118320.0,118310.0,1.2453955]
[1752928509717,0.02359,118320.0,118310.0,1.5753955]
[1752928510118,0.02359,118320.0,118310.0,1.51454322]
[1752928510321,0.02359,118330.0,118320.0,0.2389815]
[1752928510625,0.02284301,118330.0,118320.0,1.99153388]
[1752928510918,0.32938427,118350.0,118340.0,0.07197]
[1752928511125,0.34768181,118350.0,118340.0,1.74150042]
[1752928511713,0.34768181,118350.0,118340.0,2.10230042]
[1752928512421,0.37696181,118350.0,118340.0,2.10230042]
[1752928512819,0.37896181,118350.0,118340.0,2.10230042]
[1752928513222,0.36066427,118350.0,118340.0,2.10230042]
[1752928513623,0.5072504,118350.0,118340.0,1.97499166]
[1752928513820,0.5072504,118350.0,118340.0,2.11720289]
[1752928514018,0.5072504,118350.0,118340.0,1.98989413]
[1752928514218,0.5072504,118350.0,118340.0,1.86258537]
[1752928514419,0.5072504,118350.0,118340.0,1.98989413]
[1752928514811,0.5072504,118350.0,118340.0,1.26375537]
[1752928515017,0.5072504,118350.0,118340.0,1.62018413]
[1752928518622,0.5072504,118350.0,118340.0,1.03026413]
[1752928518924,0.2323672,118330.0,118320.0,0.02448382]
[1752928519128,0.40273333,118330.0,118320.0,0.59531]
[1752928519421,0.40273333,118330.0,118320.0,0.93506016]
[1752928519723,0.40273333,118330.0,118320.0,1.30999016]
[1752928520021,0.27542457,118330.0,118320.0,1.30999016]
[1752928520218,0.40273333,118330.0,118320.0,1.30999016]
[1752928520922,0.27542457,118330.0,118320.0,1.30999016]
[1752928521227,0.40273333,118330.0,118320.0,1.32591612]
[1752928522427,0.40273333,118330.0,118320.0,1.34491312]
[1752928526126,0.27542457,118330.0,118320.0,1.34491312]
[1752928526325,0.26973457,118330.0,118320.0,1.48105188]
[1752928526524,0.22632457,118330.0,118320.0,1.48105188]
[1752928527130,0.26654457,118330.0,118320.0,1.48105188]
[1752928527629,0.27606457,118330.0,118320.0,1.48105188]
[1752928528929,0.2577872,118330.0,118320.0,1.48105188]
[1752928537340,0.2577872,118330.0,118320.0,1.22643436]
[1752928537637,0.2577872,118330.0,118320.0,1.48105188]
[1752928539442,0.38509596,118330.0,118320.0,1.48105188]
[1752928539848,0.2577872,118330.0,118320.0,1.48105188]
[1752928540043,0.40337129,118330.0,118320.0,1.48105188]
[1752928541244,0.27606654,118330.0,118320.0,1.48105188]
[1752928545148,0.2760764,118330.0,118320.0,1.48105188]
[1752928545646,0.40338516,118330.0,118320.0,1.48105188]
[1752928546850,0.2760764,118330.0,118320.0,1.48105188]
[1752928547050,0.40338516,118330.0,118320.0,1.48105188]
[1752928551955,0.40338516,118330.0,118320.0,1.12025188]
[1752928552155,0.40338516,118330.0,118320.0,1.48105188]
[1752928552756,0.40338516,118330.0,118320.0,1.12025188]
[1752928553155,0.40338516,118330.0,118320.0,1.48105188]
[1752928555761,0.40338516,118330.0,118320.0,1.12025188]
[1752928555961,0.40338516,118330.0,118320.0,1.48105188]
[1752928556961,0.2760764,118330.0,118320.0,1.48105188]
[1752928557161,0.40338516,118330.0,118320.0,1.48105188]
[1752928557960,0.2760764,118330.0,118320.0,1.48105188]
[1752928558161,0.40338516,118330.0,118320.0,1.48105188]
[1752928562864,0.2698164,118330.0,118320.0,1.48105188]
[1752928564860,0.26984084,118330.0,118320.0,1.48105188]
[1752928566164,0.27607084,118330.0,118320.0,1.48105188]
[1752928566967,0.4033796,118330.0,118320.0,1.48105188]
[1752928567464,0.26984084,118330.0,118320.0,1.48105188]
[1752928567663,0.26658084,118330.0,118320.0,1.48105188]
[1752928567872,0.26658084,118330.0,118320.0,1.22643436]
[1752928568166,0.26658084,118330.0,118320.0,1.48105188]
[1752928572175,0.26658084,118330.0,118320.0,1.22643436]
[1752928572370,0.26658084,118330.0,118320.0,1.48105188]
[1752928574372,0.26658084,118330.0,118320.0,1.12025188]
[1752928574572,0.26658084,118330.0,118320.0,1.48105188]
[1752928575472,0.26658084,118330.0,118320.0,1.22643436]
[1752928575673,0.26658084,118330.0,118320.0,1.48105188]
[1752928576989,0.26658084,118330.0,118320.0,1.22643436]
[1752928577176,0.26658084,118330.0,118320.0,1.48105188]
[1752928577977,0.26658144,118330.0,118320.0,1.48105188]
[1752928579480,0.2665814,118330.0,118320.0,1.48105188]
[1752928587293,0.2665814,118330.0,118320.0,1.22643436]
[1752928587488,0.2665814,118330.0,118320.0,1.48105188]
[1752928589494,0.2665814,118330.0,118320.0,0.89125188]
[1752928589694,0.2665814,118330.0,118320.0,1.48001188]
[1752928591999,0.2665814,118330.0,118320.0,0.89125188]
[1752928592198,0.2665814,118330.0,118320.0,1.47993188]
[1752928597401,0.2665814,118330.0,118320.0,1.22531436]
[1752928597716,0.2665814,118330.0,118320.0,1.47993188]
[1752928599803,0.2665814,118330.0,118320.0,1.84073188]
[1752928602303,0.2665814,118330.0,118320.0,1.58611436]
[1752928602603,0.2665814,118330.0,118320.0,1.84073188]
[1752928603406,0.2665814,118330.0,118320.0,1.58611436]
[1752928603703,0.2665814,118330.0,118320.0,1.84073188]
[1752928604808,0.39389016,118330.0,118320.0,1.84073188]
[1752928605209,0.40278016,118330.0,118320.0,1.71318312]
[1752928605713,0.40278016,118330.0,118320.0,1.12474312]
[1752928605905,0.53008892,118330.0,118320.0,0.09806296]
[1752928606109,0.53008892,118330.0,118320.0,0.63152296]
[1752928606309,0.53008892,118330.0,118320.0,0.62601296]
[1752928606505,0.89088892,118330.0,118320.0,0.018997]
[1752928606804,0.2587357,118310.0,118300.0,0.39079]
[1752928607008,0.42129728,118310.0,118300.0,0.65102]
[1752928607215,0.20462,118300.0,118290.0,0.80849637]
[1752928607410,0.51336752,118300.0,118290.0,0.80849637]
[1752928607609,0.53166416,118300.0,118290.0,0.65102]
[1752928608510,0.53166416,118300.0,118290.0,0.65602]
[1752928609011,0.53166416,118300.0,118290.0,0.66867535]
[1752928609313,0.53166416,118300.0,118290.0,0.67067535]
[1752928610013,0.53166416,118300.0,118290.0,0.66767535]
[1752928612917,0.89246416,118300.0,118290.0,0.004]
[1752928613121,0.89246416,118300.0,118290.0,0.59236]
[1752928613617,0.87416752,118300.0,118290.0,0.59236]
[1752928613921,1.37416752,118300.0,118290.0,0.59236]
[1752928614117,1.39440684,118300.0,118290.0,0.59032]
[1752928614514,1.46348063,118300.0,118290.0,0.60269663]
[1752928615121,1.39440684,118300.0,118290.0,0.59032]
[1752928615315,1.39440684,118300.0,118290.0,0.58832]
[1752928615516,1.39540684,118300.0,118290.0,0.58832]
[1752928617221,0.00294,118280.0,118270.0,0.3608]
[1752928617426,0.88746712,118280.0,118270.0,0.59121]
[1752928618324,0.88746712,118280.0,118270.0,0.6135]
[1752928618920,0.80277166,118280.0,118270.0,0.62608472]
[1752928619922,1.30277166,118280.0,118270.0,0.64928472]
[1752928620623,1.30277166,118280.0,118270.0,0.66341472]
[1752928621627,1.1328496,118280.0,118270.0,0.66341472]
[1752928622125,1.30277166,118280.0,118270.0,0.66341472]
[1752928622327,1.32096429,118280.0,118270.0,0.66341472]
[1752928622831,1.1328496,118280.0,118270.0,0.66341472]
[1752928623128,1.30277166,118280.0,118270.0,0.66341472]
[1752928623828,1.30277166,118280.0,118270.0,0.07509472]
[1752928624032,1.32095744,118280.0,118270.0,0.66337472]
[1752928624222,1.30277166,118280.0,118270.0,0.66337472]
[1752928624522,1.32095482,118280.0,118270.0,0.66337472]
[1752928625329,1.30277166,118280.0,118270.0,0.66337472]
[1752928625531,1.320953,118280.0,118270.0,0.66337472]
[1752928629733,0.960153,118280.0,118270.0,0.66337472]
[1752928629933,1.320953,118280.0,118270.0,0.66337472]
[1752928632933,1.15103094,118280.0,118270.0,0.66337472]
[1752928633132,1.320953,118280.0,118270.0,0.66337472]
[1752928634636,1.15103094,118280.0,118270.0,0.66337472]
[1752928634826,1.320953,118280.0,118270.0,0.66337472]
[1752928635025,1.15103094,118280.0,118270.0,0.66337472]
[1752928635225,1.320953,118280.0,118270.0,0.66337472]
[1752928635634,0.79023094,118280.0,118270.0,1.37193958]
[1752928635825,0.78426094,118280.0,118270.0,1.37193958]
[1752928636537,0.28426094,118280.0,118270.0,1.37193958]
[1752928637033,0.2660796,118280.0,118270.0,1.37193958]
[1752928637237,0.28430055,118280.0,118270.0,1.37193958]
[1752928638145,0.29027055,118280.0,118270.0,1.20201752]
[1752928638939,0.41767533,118280.0,118270.0,1.3304223]
[1752928639640,0.41767533,118280.0,118270.0,1.3324223]
[1752928640040,0.29027055,118280.0,118270.0,1.3324223]
[1752928640638,0.41767533,118280.0,118270.0,1.3324223]
[1752928640828,0.22724055,118280.0,118270.0,1.45982708]
[1752928641033,0.22724055,118280.0,118270.0,1.3324223]
[1752928642644,0.37757533,118280.0,118270.0,1.3324223]
[1752928643150,0.37757533,118280.0,118270.0,1.20501752]
[1752928643342,0.39345533,118280.0,118270.0,1.3324223]
[1752928644845,0.26605055,118280.0,118270.0,1.3324223]
[1752928645041,0.24312055,118280.0,118270.0,1.3324223]
[1752928645945,0.22724055,118280.0,118270.0,1.3324223]
[1752928653543,0.2090196,118280.0,118270.0,1.3324223]
[1752928656853,0.2090196,118280.0,118270.0,1.20501752]
[1752928657052,0.2090196,118280.0,118270.0,1.3324223]
[1752928662359,0.3186729,118290.0,118280.0,0.1689985]
[1752928662559,0.3186729,118290.0,118280.0,0.85740806]
[1752928662560,0.29627162,118290.0,118280.0,0.85740806]
[1752928662864,0.2780138,118290.0,118280.0,0.85740806]
[1752928663063,0.2357647,118290.0,118280.0,1.15260806]
[1752928663658,0.25280224,118290.0,118280.0,1.15260806]
[1752928666766,0.25280224,118290.0,118280.0,1.51440806]
[1752928667168,0.25280224,118290.0,118280.0,1.57526034]
[1752928667367,0.21055384,118290.0,118280.0,1.57726034]
[1752928667674,0.01703754,118290.0,118280.0,1.59637923]
[1752928667861,0.01703754,118290.0,118280.0,1.72378401]
[1752928668067,0.01703754,118290.0,118280.0,1.74858401]
[1752928668373,0.01703754,118290.0,118280.0,1.62117923]
[1752928669170,0.18602174,118290.0,118280.0,1.62117923]
[1752928671771,0.01703754,118290.0,118280.0,1.62117923]
[1752928672471,0.18602174,118290.0,118280.0,1.62117923]
[1752928673670,0.18602174,118290.0,118280.0,1.56032695]
[1752928673873,0.01703754,118290.0,118280.0,1.85552695]
[1752928675169,0.18602174,118290.0,118280.0,1.85552695]
[1752928675677,0.01703754,118290.0,118280.0,1.85552695]
[1752928676475,0.18602174,118290.0,118280.0,1.85552695]
[1752928677169,0.01703754,118290.0,118280.0,1.85552695]
[1752928680776,0.18602174,118290.0,118280.0,1.85552695]
[1752928680977,0.01703754,118290.0,118280.0,1.85552695]
[1752928681177,0.18602174,118290.0,118280.0,1.85552695]
[1752928681375,0.18602174,118290.0,118280.0,1.60071739]
[1752928681577,0.18602174,118290.0,118280.0,1.53552695]
[1752928681782,0.20854174,118290.0,118280.0,1.53552695]
[1752928682580,0.20854174,118290.0,118280.0,2.12276695]
[1752928685278,0.20854174,118290.0,118280.0,2.18361923]
[1752928689786,0.20854174,118290.0,118280.0,2.18345923]
[1752928691079,0.25723174,118290.0,118280.0,1.34156967]
[1752928691285,0.27337174,118290.0,118280.0,2.18345923]
[1752928692580,0.27337174,118290.0,118280.0,1.29114595]
[1752928692786,0.41905629,118290.0,118280.0,1.68992889]
[1752928692985,0.54646019,118290.0,118280.0,0.90435889]
[1752928693180,0.41905541,118290.0,118280.0,0.31731889]
[1752928693383,0.90726019,118290.0,118280.0,0.31731889]
[1752928693579,0.90726019,118290.0,118280.0,0.90435889]
[1752928693884,0.90726019,118290.0,118280.0,0.8852]
[1752928694287,1.40726019,118290.0,118280.0,0.8852]
[1752928695800,1.27985541,118290.0,118280.0,0.8852]
[1752928697591,1.27985541,118290.0,118280.0,0.59]
[1752928701192,1.40726019,118290.0,118280.0,0.59]
[1752928703593,1.27985541,118290.0,118280.0,0.59]
[1752928705393,0.91905541,118290.0,118280.0,0.59]
[1752928712900,1.04646019,118290.0,118280.0,0.59]
[1752928713906,0.91905541,118290.0,118280.0,0.59]
[1752928714712,0.91905541,118290.0,118280.0,0.60921]
[1752928715006,0.91905541,118290.0,118280.0,0.61467]
[1752928715407,0.91905541,118290.0,118280.0,0.63861]
[1752928715708,0.79165063,118290.0,118280.0,0.63861]
[1752928715908,0.91905541,118290.0,118280.0,0.63861]
[1752928720808,1.27985541,118290.0,118280.0,0.63861]
[1752928721205,0.91905541,118290.0,118280.0,0.63861]
[1752928722104,1.27985541,118290.0,118280.0,0.63861]
[1752928723611,0.91905541,118290.0,118280.0,0.63861]
[1752928723812,1.27985541,118290.0,118280.0,0.63861]
[1752928726814,1.27985541,118290.0,118280.0,0.65274]
[1752928732211,0.76958063,118290.0,118280.0,1.44617806]
[1752928732417,0.76958063,118290.0,118280.0,1.27717956]
[1752928732617,0.28484063,118290.0,118280.0,1.27717956]
[1752928732812,0.29050063,118290.0,118280.0,1.14977478]
[1752928733517,0.41790541,118290.0,118280.0,1.14977478]
[1752928734917,0.41790541,118290.0,118280.0,0.78897478]
[1752928735219,0.41790541,118290.0,118280.0,1.31877328]
[1752928736122,0.41790541,118290.0,118280.0,1.14977478]
[1752928736821,0.41790541,118290.0,118280.0,1.31877328]
[1752928737117,0.26573063,118290.0,118280.0,1.44617806]
[1752928737922,0.26573063,118290.0,118280.0,1.1913685]
[1752928738221,0.26573063,118290.0,118280.0,1.44617806]
[1752928738522,0.26573063,118290.0,118280.0,1.1913685]
[1752928738816,0.26573063,118290.0,118280.0,1.14977478]
[1752928739123,0.40839541,118290.0,118280.0,1.14977478]
[1752928739324,0.41405541,118290.0,118280.0,1.14977478]
[1752928740521,0.41405541,118290.0,118280.0,1.31877328]
[1752928741021,0.41405541,118290.0,118280.0,1.14977478]
[1752928741621,0.41693541,118290.0,118280.0,1.14977478]
[1752928744722,0.41693541,118290.0,118280.0,1.31877328]
[1752928744927,0.24197063,118290.0,118280.0,1.44617806]
[1752928745122,0.20430063,118290.0,118280.0,1.44617806]
[1752928746018,0.22689063,118290.0,118280.0,1.44617806]
[1752928750821,0.20861174,118290.0,118280.0,1.44617806]
[1752928751023,0.20861174,118290.0,118280.0,1.1913685]
[1752928751229,0.26661174,118290.0,118280.0,0.69017956]
[1752928751536,0.41789489,118290.0,118280.0,0.43537]
[1752928751725,0.41789489,118290.0,118280.0,1.01254]
[1752928752225,0.41789489,118290.0,118280.0,1.13994478]
[1752928752626,0.41789489,118290.0,118280.0,1.30894328]
[1752928752928,0.41789489,118290.0,118280.0,1.31777328]
[1752928753128,0.29049011,118290.0,118280.0,1.44517806]
[1752928753317,0.22683011,118290.0,118280.0,1.44517806]
[1752928753820,0.37033489,118290.0,118280.0,1.44517806]
[1752928754022,0.39409489,118290.0,118280.0,1.44517806]
[1752928754428,0.41789489,118290.0,118280.0,1.0125]
[1752928754625,0.41789489,118290.0,118280.0,1.13990478]
[1752928754823,0.41789489,118290.0,118280.0,1.0125]
[1752928755021,0.41789489,118290.0,118280.0,1.13990478]
[1752928755225,0.41789489,118290.0,118280.0,0.77910478]
[1752928755418,0.41789489,118290.0,118280.0,0.03076]
[1752928755731,0.90609967,118290.0,118280.0,0.59188]
[1752928755926,1.40609967,118290.0,118280.0,0.59188]
[1752928757030,1.32118772,118290.0,118280.0,0.59188]
[1752928761029,1.32118772,118290.0,118280.0,0.59712]
[1752928762233,1.32118772,118290.0,118280.0,0.59184]
[1752928762531,1.32118772,118290.0,118280.0,0.58888]
[1752928764538,1.32118772,118290.0,118280.0,0.003]
[1752928766239,1.15129011,118290.0,118280.0,0.003]
[1752928766538,1.32118772,118290.0,118280.0,0.003]
[1752928770844,1.15129011,118290.0,118280.0,0.003]
[1752928771041,1.32118772,118290.0,118280.0,0.003]
[1752928774751,1.90698772,118290.0,118280.0,0.003]
[1752928777051,1.99196417,118290.0,118280.0,0.003]
[1752928785152,1.99196417,118290.0,118280.0,0.002]
[1752928785455,0.2276028,118270.0,118260.0,0.04803]
[1752928785654,0.4025282,118270.0,118260.0,0.04803]
[1752928785855,0.4025282,118270.0,118260.0,0.07702996]
[1752928786056,0.4025282,118270.0,118260.0,0.05326996]
[1752928786452,0.52996523,118270.0,118260.0,0.03173996]
[1752928786761,0.89076523,118270.0,118260.0,0.03373996]
[1752928786951,0.7633282,118270.0,118260.0,0.03373996]
[1752928787355,1.2633282,118270.0,118260.0,0.03473996]
[1752928787755,1.13589117,118270.0,118260.0,0.03473996]
[1752928788060,1.2633282,118270.0,118260.0,0.08002996]
[1752928788260,0.9025282,118270.0,118260.0,0.08002996]
[1752928793059,0.77509117,118270.0,118260.0,0.03199996]
[1752928793259,1.02996523,118270.0,118260.0,0.03199996]
[1752928793460,0.9025282,118270.0,118260.0,0.03199996]
[1752928795662,0.91960921,118270.0,118260.0,0.03199996]
[1752928797262,0.79217218,118270.0,118260.0,0.03199996]
[1752928797467,0.91960921,118270.0,118260.0,0.58121699]
[1752928797870,0.91960921,118270.0,118260.0,0.45377996]
[1752928798668,0.41960921,118270.0,118260.0,0.45377996]
[1752928801471,0.29217218,118270.0,118260.0,0.45377996]
[1752928801671,0.41960921,118270.0,118260.0,0.70865402]
[1752928801867,0.29217218,118270.0,118260.0,0.71748402]
[1752928802067,0.41960921,118270.0,118260.0,0.71748402]
[1752928802571,0.28647218,118270.0,118260.0,0.46260996]
[1752928802869,0.41390921,118270.0,118260.0,0.75907409]
[1752928803072,0.29209218,118270.0,118260.0,0.63250494]
[1752928803373,0.29209218,118270.0,118260.0,0.80153204]
[1752928803562,0.29209218,118270.0,118260.0,0.63250494]
[1752928803871,0.29209218,118270.0,118260.0,0.80153204]
[1752928804262,0.22872218,118270.0,118260.0,0.80153204]
[1752928804467,0.21164117,118270.0,118260.0,0.80153204]
[1752928804667,0.1934228,118270.0,118260.0,0.80153204]
[1752928804970,0.21156585,118270.0,118260.0,0.80153204]
[1752928810269,0.21157022,118270.0,118260.0,0.80153204]
[1752928815283,0.21157022,118270.0,118260.0,0.63163706]
[1752928815499,0.21157022,118270.0,118260.0,0.80153204]
[1752928818487,0.23501022,118270.0,118260.0,0.80153204]
[1752928819278,0.25077022,118270.0,118260.0,0.80153204]
[1752928820886,0.21157022,118270.0,118260.0,0.80153204]
[1752928821486,0.1934228,118270.0,118260.0,0.80153204]
[1752928822280,0.1446027,118270.0,118260.0,0.92829554]
[1752928824787,0.1446027,118270.0,118260.0,1.22349554]
[1752928824987,0.1446027,118270.0,118260.0,1.32741883]
[1752928825187,0.3585956,118280.0,118270.0,0.2043927]
[1752928825487,0.3585956,118280.0,118270.0,1.33036121]
[1752928825488,0.37673446,118280.0,118270.0,1.33036121]
[1752928825686,0.37673446,118280.0,118270.0,1.2029727]
[1752928825886,0.37673446,118280.0,118270.0,1.33036121]
[1752928826086,0.39229446,118280.0,118270.0,1.33036121]
[1752928826386,0.40025446,118280.0,118270.0,1.2029727]